bitfinex-derivatives/quotes_SOLF0:USTF0_20260210
["timestamp","ask_amount","ask_price","bid_price","bid_amount"]
[1770763186423,8.75521952,82.849,82.807,8.70793418]
[1770763186925,8.75521952,82.849,82.816,8.7049243]
[1770763187224,3.73349825,82.85,82.816,8.7049243]
[1770763187619,12.48871777,82.85,82.816,8.7049243]
[1770763187818,3.73349825,82.85,82.816,8.7049243]
[1770763188222,12.48871777,82.85,82.816,8.7049243]
[1770763188424,3.73349825,82.85,82.816,8.7049243]
[1770763189024,12.48871777,82.85,82.816,8.7049243]
[1770763189221,3.73349825,82.85,82.816,8.7049243]
[1770763191823,3.73349825,82.85,82.818,10.873]
[1770763192027,3.73349825,82.85,82.819,8.70666886]
[1770763195229,3.73349825,82.85,82.821,10.8727]
[1770763195430,3.73349825,82.85,82.822,8.77759372]
[1770763196029,8.75521952,82.857,82.826,8.77759372]
[1770763196328,8.75521952,82.866,82.826,8.77759372]
[1770763196632,3.73349825,82.89,82.831,4.39318862]
[1770763196829,3.73349825,82.89,82.802,108.28]
[1770763196830,10.8638,82.889,82.85,4.39318862]
[1770763197528,3.73349825,82.89,82.855,4.39318862]
[1770763199230,10.8624,82.9,82.857,4.43674945]
[1770763199437,3.73349825,82.9,82.857,4.43674945]
[1770763199931,10.8625,82.899,82.857,4.43674945]
[1770763200133,15.0904526,82.941,82.861,4.43674945]
[1770763200134,3.73349825,82.92,82.861,4.43674945]
[1770763200439,3.73349825,82.92,82.828,21.7436]
[1770763200440,3.73349825,82.94,82.881,4.43674945]
[1770763200836,3.73349825,82.94,82.896,4.45719795]
[1770763201132,122.28,82.953,82.896,4.45719795]
[1770763201331,122.28,82.953,82.897,4.45719795]
[1770763201332,3.73349825,82.94,82.897,4.45719795]
[1770763201833,3.73349825,82.94,82.9,4.45719795]
[1770763202833,3.73349825,82.93,82.882,4.46669867]
[1770763203330,3.73349825,82.93,82.87,3.73349825]
[1770763203331,3.73349825,82.93,82.883,4.46669867]
[1770763204638,3.73349825,82.92,82.883,4.46669867]
[1770763204937,3.72650754,82.92,82.883,4.46669867]
[1770763205138,10.8599,82.919,82.883,4.46669867]
[1770763205337,10.8599,82.919,82.868,4.47189064]
[1770763205338,3.72650754,82.91,82.868,4.47189064]
[1770763206738,3.72650754,82.92,82.868,4.47189064]
[1770763207735,3.72650754,82.92,82.879,4.50760228]
[1770763209833,3.72650754,82.93,82.882,4.4566326]
[1770763210043,3.72650754,82.94,82.882,4.4566326]
[1770763210250,321.56207573,82.958,82.882,4.4566326]
[1770763210540,3.72650754,82.97,82.911,4.43087857]
[1770763211048,3.72650754,82.95,82.911,4.43087857]
[1770763211439,10.8561,82.948,82.911,4.43087857]
[1770763211639,3.72650754,82.94,82.898,4.43087857]
[1770763211948,3.72650754,82.93,82.898,4.43087857]
[1770763212449,10.8589,82.927,82.898,4.43087857]
[1770763213134,10.8589,82.927,82.878,4.42579194]
[1770763214447,10.8589,82.927,82.88,4.42985617]
[1770763215644,3.72650754,82.93,82.884,4.42985617]
[1770763216849,10.8587,82.928,82.884,4.42985617]
[1770763218748,3.72650754,82.92,82.884,4.42985617]
[1770763218942,10.8597,82.921,82.884,4.42985617]
[1770763221051,3.72650754,82.91,82.867,4.43283359]
[1770763222852,10.862,82.903,82.867,4.43283359]
[1770763223249,3.72650754,82.88,82.852,4.46662543]
[1770763223448,3.72650754,82.88,82.821,4.46662543]
[1770763224747,3.72650754,82.88,82.834,4.51077415]
[1770763225752,3.72650754,82.88,82.837,4.51077415]
[1770763226558,3.72650754,82.88,82.839,4.50596352]
[1770763228048,3.72650754,82.88,82.843,4.50596352]
[1770763228246,10.8642,82.886,82.843,4.50596352]
[1770763233360,3.72650754,82.88,82.843,4.50596352]
[1770763237461,10.8642,82.886,82.843,4.50596352]
[1770763238756,3.72650754,82.89,82.843,4.50596352]
[1770763238953,3.72650754,82.88,82.843,4.50596352]
[1770763239358,3.72650754,82.86,82.82,4.59769353]
[1770763240966,10.8685,82.854,82.82,4.59769353]
[1770763242366,10.8678,82.859,82.82,4.59769353]
[1770763242563,3.72650754,82.87,82.82,4.59769353]
[1770763243867,10.867,82.865,82.824,10.8722]
[1770763244068,8.65965932,82.897,82.825,4.582568]
[1770763244069,3.72650754,82.88,82.825,4.582568]
[1770763244666,3.72650754,82.87,82.825,4.582568]
[1770763245967,3.72650754,82.87,82.838,10.8705]
[1770763247765,3.72650754,82.87,82.839,4.56060011]
[1770763252871,3.73120864,82.87,82.839,4.56060011]
[1770763253880,10.8655,82.877,82.839,4.56060011]
[1770763254761,3.73120864,82.89,82.843,4.56293529]
[1770763255163,10.8647,82.883,82.843,4.56293529]
[1770763255473,3.73120864,82.89,82.843,4.56293529]
[1770763256170,3.73120864,82.89,82.837,10.8705]
[1770763256470,10.8653,82.878,82.841,4.56293529]
[1770763257874,10.8653,82.878,82.843,4.52167097]
[1770763260876,3.73120864,82.87,82.826,10.872]
[1770763261078,3.73120864,82.86,82.819,4.512909]
[1770763262680,10.8678,82.859,82.819,15.385809]
[1770763264578,3.73120864,82.85,82.819,4.512909]
[1770763266278,3.73120864,82.85,82.805,4.54643428]
[1770763266972,3.7333301,82.85,82.807,4.54721261]
[1770763267372,3.7333301,82.84,82.8,10.8753]
[1770763267576,10.8699,82.843,82.801,4.54721261]
[1770763267773,3.7333301,82.84,82.801,4.54721261]
[1770763268177,3.7333301,82.84,82.803,10.875]
[1770763269275,3.7333301,82.84,82.801,4.54721261]
[1770763269276,10.8704,82.839,82.801,4.54721261]
[1770763270289,104.24,82.865,82.781,96.32]
[1770763270290,3.7333301,82.83,82.79,4.55381343]
[1770763271680,10.872,82.827,82.79,4.55381343]
[1770763271891,3.7333301,82.82,82.762,4.60486957]
[1770763272785,10.8744,82.809,82.768,4.61227091]
[1770763272990,3.7333301,82.81,82.768,4.61227091]
[1770763273192,3.7333301,82.8,82.768,4.61227091]
[1770763273990,3.7333301,82.8,82.756,4.61227091]
[1770763274590,10.8758,82.798,82.756,4.61227091]
[1770763274987,14.6101301,82.79,82.745,4.58382241]
[1770763276396,96.36,82.807,82.696,21.95928862]
[1770763276397,3.7333301,82.77,82.733,4.58382241]
[1770763276997,3.7333301,82.78,82.733,4.58382241]
[1770763277292,10.8783,82.779,82.735,10.8839]
[1770763279084,10.8783,82.779,82.736,4.67985748]
[1770763279390,10.8783,82.779,82.738,4.67985748]
[1770763285794,10.8761,82.796,82.747,4.71407506]
[1770763286100,10.8761,82.796,82.751,4.71407506]
[1770763287196,10.8745,82.808,82.764,4.66531444]
[1770763288697,10.8745,82.808,82.766,4.6043327]
[1770763289696,10.8745,82.808,82.75,3.7333301]
[1770763289697,10.8745,82.808,82.768,4.6043327]
[1770763290396,3.7333301,82.81,82.776,10.8786]
[1770763290701,10.873,82.819,82.776,15.4829327]
[1770763292908,3.7333301,82.82,82.783,4.59145502]
[1770763293201,316.98852536,82.837,82.783,4.59145502]
[1770763294000,316.98852536,82.837,82.787,4.59145502]
[1770763294498,3.7333301,82.83,82.787,4.59145502]
[1770763296299,3.7333301,82.81,82.761,4.57810073]
[1770763297807,10.8734,82.817,82.764,4.59810046]
[1770763298404,10.8734,82.817,82.766,4.59810046]
[1770763300112,10.8734,82.817,82.768,4.62460424]
[1770763304609,3.7333301,82.82,82.768,4.62460424]
[1770763305813,10.8737,82.814,82.768,4.62460424]
[1770763306713,10.8726,82.822,82.771,4.57396362]
[1770763307717,10.8726,82.822,82.781,4.57396362]
[1770763308713,10.8716,82.83,82.781,4.57396362]
[1770763308914,316.98852536,82.837,82.781,4.57396362]
[1770763310724,10.8715,82.831,82.79,4.68873977]
[1770763311016,21.7316,82.875,82.79,4.68873977]
[1770763311217,3.7333301,82.84,82.79,4.68873977]
[1770763312722,10.8704,82.839,82.794,10.8762]
[1770763313016,10.8704,82.839,82.795,4.68680681]
[1770763315723,10.8692,82.848,82.804,4.6837223]
[1770763316721,10.8692,82.848,82.806,4.68177601]
[1770763321125,10.8692,82.848,82.808,4.68642766]
[1770763322624,3.7333301,82.85,82.791,4.68642766]
[1770763323829,10.8709,82.835,82.793,4.68438588]
[1770763324731,10.8717,82.829,82.793,4.68438588]
[1770763324929,3.7333301,82.84,82.793,4.68438588]
[1770763326729,10.8726,82.822,82.793,4.68438588]
[1770763326933,3.73444536,82.84,82.793,4.68438588]
[1770763327133,3.73444536,82.83,82.771,4.73569332]
[1770763327934,10.872,82.827,82.783,4.73569332]
[1770763328531,10.8735,82.816,82.783,4.73569332]
[1770763340642,3.73444536,82.8,82.751,4.76176347]
[1770763341336,10.8765,82.793,82.753,4.78589492]
[1770763342737,10.8765,82.793,82.755,4.8266158]
[1770763345345,3.73444536,82.81,82.755,4.8266158]
[1770763345544,3.73444536,82.8,82.755,4.8266158]
[1770763347847,10.8767,82.791,82.755,4.8266158]
[1770763351853,3.73444536,82.8,82.736,4.87316872]
[1770763352748,10.8785,82.777,82.739,4.87987434]
[1770763355654,10.8793,82.772,82.739,4.87987434]
[1770763359773,3.73444536,82.79,82.739,4.87987434]
[1770763360870,10.8788,82.775,82.739,4.87987434]
[1770763364862,10.8795,82.77,82.739,4.87987434]
[1770763365168,3.73444536,82.79,82.739,4.87987434]
[1770763365575,10.8807,82.761,82.739,4.87987434]
[1770763366774,10.8799,82.767,82.739,4.87987434]
[1770763372470,10.8799,82.767,82.728,4.91092923]
[1770763377580,10.8799,82.767,82.73,3.73908766]
[1770763377877,10.8799,82.767,82.731,4.91177954]
[1770763380788,10.8806,82.761,82.731,4.91177954]
[1770763383686,10.8799,82.767,82.731,4.91177954]
[1770763401001,8.6858479,82.786,82.731,4.91177954]
[1770763401302,8.6858479,82.785,82.731,4.91177954]
[1770763401506,8.6858479,82.784,82.731,4.91177954]
[1770763401805,10.8804,82.763,82.731,4.91177954]
[1770763421808,10.8804,82.763,82.719,21.95928862]
[1770763421809,3.73907725,82.76,82.7,46.57106515]
[1770763422012,3.73907725,82.75,82.7,46.57106515]
[1770763422817,10.8847,82.73,82.7,46.57106515]
[1770763423612,10.8839,82.736,82.7,46.57106515]
[1770763427614,3.73907725,82.76,82.7,46.57106515]
[1770763427811,8.75266397,82.781,82.71,50.21946725]
[1770763428014,8.75266397,82.781,82.681,21.7823]
[1770763428015,3.73907725,82.78,82.721,46.48039]
[1770763428724,10.8804,82.763,82.723,46.41125459]
[1770763430830,3.73907725,82.78,82.716,96.44]
[1770763431024,3.73907725,82.78,82.717,46.4075648]
[1770763431729,152.92,82.793,82.717,46.4075648]
[1770763431730,10.8818,82.753,82.717,46.4075648]
[1770763433834,10.8826,82.746,82.717,46.4075648]
[1770763434025,3.73907725,82.77,82.717,46.4075648]
[1770763434831,3.73907725,82.77,82.703,125.88]
[1770763434832,3.73907725,82.77,82.704,46.40244159]
[1770763435824,10.8829,82.744,82.704,46.40244159]
[1770763436025,21.7595,82.768,82.704,46.40244159]
[1770763436831,21.7595,82.768,82.654,65.70989677]
[1770763436832,3.73907725,82.74,82.681,46.42267147]
[1770763437734,10.8857,82.723,82.681,46.42267147]
[1770763442136,10.8857,82.723,82.678,10.8915]
[1770763442444,10.8867,82.715,82.679,46.46785247]
[1770763442638,3.73907725,82.74,82.679,46.46785247]
[1770763442845,10.8868,82.714,82.679,46.46785247]
[1770763443041,3.73907725,82.73,82.679,46.46785247]
[1770763443235,3.73907725,82.72,82.671,46.54979345]
[1770763443635,3.73907725,82.72,82.658,57.44389345]
[1770763443831,3.73907725,82.72,82.658,46.54979345]
[1770763445839,10.8884,82.702,82.66,46.46608907]
[1770763448550,3.73907725,82.72,82.66,46.46608907]
[1770763448945,3.74567223,82.72,82.66,46.46608907]
[1770763450048,10.8889,82.699,82.66,46.46608907]
[1770763453748,3.74567223,82.71,82.66,46.46608907]
[1770763453950,3.74567223,82.7,82.66,46.46608907]
[1770763454752,10.8893,82.695,82.66,46.46608907]
[1770763455355,10.8901,82.689,82.66,46.46608907]
[1770763460958,3.74567223,82.7,82.651,46.48944996]
[1770763461155,21.771,82.724,82.629,46.48944996]
[1770763461156,3.74567223,82.69,82.629,46.48944996]
[1770763462459,3.74567223,82.7,82.638,46.48944996]
[1770763462855,10.8917,82.677,82.638,46.48944996]
[1770763463154,3.74567223,82.68,82.613,46.50552306]
[1770763463354,3.74567223,82.67,82.613,46.50552306]
[1770763464758,10.8935,82.664,82.616,46.49229478]
[1770763467259,10.8944,82.657,82.616,46.49229478]
[1770763471253,3.74567223,82.67,82.619,46.46506844]
[1770763471659,3.74567223,82.66,82.619,46.46506844]
[1770763471860,3.74567223,82.67,82.619,46.46506844]
[1770763473262,3.74567223,82.67,82.604,96.52]
[1770763473263,10.8925,82.671,82.631,46.47547701]
[1770763473566,3.74567223,82.69,82.631,46.47547701]
[1770763474865,10.8921,82.674,82.631,57.37317701]
[1770763476661,10.891,82.682,82.639,46.47625323]
[1770763476861,3.74567223,82.7,82.641,46.47115586]
[1770763477062,3.74567223,82.72,82.651,46.47115586]
[1770763477562,10.8883,82.703,82.656,46.47115586]
[1770763477759,3.74567223,82.73,82.661,46.47115586]
[1770763478360,3.74567223,82.73,82.673,46.47115586]
[1770763479456,10.8857,82.723,82.676,46.44223513]
[1770763479652,11.16688461,82.761,82.676,46.44223513]
[1770763479653,3.74567223,82.74,82.676,46.44223513]
[1770763479859,3.74567223,82.74,82.681,46.44223513]
[1770763480061,10.8835,82.74,82.684,46.44223513]
[1770763480456,3.74567223,82.75,82.684,46.44223513]
[1770763480670,3.74567223,82.74,82.684,46.44223513]
[1770763480970,3.74567223,82.75,82.684,46.44223513]
[1770763481565,10.8825,82.747,82.698,46.44502476]
[1770763482970,10.8825,82.747,82.7,46.43711609]
[1770763484770,10.8825,82.747,82.704,46.37284162]
[1770763487472,10.8814,82.756,82.707,46.382709]
[1770763487973,11.16688461,82.787,82.707,46.382709]
[1770763488274,3.74567223,82.77,82.707,46.382709]
[1770763488471,3.74567223,82.76,82.707,46.382709]
[1770763489670,10.8812,82.757,82.71,10.8873]
[1770763489973,10.8812,82.757,82.711,46.37858107]
[1770763491070,10.8812,82.757,82.714,46.31944221]
[1770763495285,3.7411084,82.78,82.718,46.30420103]
[1770763496182,10.8801,82.766,82.722,46.30420103]
[1770763496678,96.52,82.792,82.722,46.30420103]
[1770763496679,3.7411084,82.77,82.722,46.30420103]
[1770763496881,3.7411084,82.76,82.722,27.98930103]
[1770763497083,96.52,82.792,82.702,136.14]
[1770763497084,3.7411084,82.75,82.702,136.14]
[1770763497280,3.7411084,82.76,82.702,136.14]
[1770763497485,10.883,82.743,82.702,136.14]
[1770763497784,3.7411084,82.76,82.702,136.14]
[1770763498685,10.883,82.743,82.702,136.14]
[1770763499184,10.883,82.743,82.703,27.02501275]
[1770763500386,10.8819,82.752,82.703,27.02501275]
[1770763502183,10.8819,82.752,82.704,27.0512131]
[1770763503288,10.8819,82.752,82.706,27.0717428]
[1770763503784,10.8807,82.76,82.706,27.0717428]
[1770763504186,10.8807,82.76,82.702,136.14]
[1770763504187,10.8807,82.76,82.708,27.0717428]
[1770763505887,10.8817,82.753,82.708,27.0717428]
[1770763508990,3.7411084,82.77,82.708,27.0717428]
[1770763509183,3.7411084,82.79,82.731,27.09213993]
[1770763510391,10.8787,82.776,82.731,27.09213993]
[1770763512688,3.73888819,82.77,82.731,27.09213993]
[1770763512889,3.73888819,82.78,82.731,27.09213993]
[1770763513190,3.73888819,82.77,82.731,27.09213993]
[1770763514893,10.8808,82.76,82.731,27.09213993]
[1770763521990,10.8796,82.769,82.731,27.09213993]
[1770763522194,3.73888819,82.78,82.731,27.09213993]
[1770763523797,10.8804,82.763,82.731,27.09213993]
[1770763524094,21.7519,82.797,82.731,27.09213993]
[1770763524095,3.73888819,82.79,82.731,27.09213993]
[1770763524797,10.8791,82.773,82.733,27.03999097]
[1770763525592,10.8778,82.783,82.737,27.03999097]
[1770763526692,10.8778,82.783,82.739,27.03241263]
[1770763529493,11.16688461,82.814,82.702,136.14]
[1770763529494,3.73888819,82.81,82.753,27.0919802]
[1770763530096,3.73888819,82.82,82.753,27.0919802]
[1770763530498,10.8753,82.802,82.755,27.0919802]
[1770763531794,10.8753,82.802,82.76,27.10143592]
[1770763538108,10.8753,82.802,82.761,10.8805]
[1770763538304,10.8753,82.802,82.762,27.10966091]
[1770763550122,10.8743,82.809,82.768,27.09951619]
[1770763550323,3.73888819,82.82,82.768,27.09951619]
[1770763551716,10.8751,82.803,82.768,27.09951619]
[1770763553522,3.73888819,82.82,82.768,27.09951619]
[1770763553726,10.8743,82.81,82.77,27.09880959]
[1770763554727,10.8743,82.81,82.772,27.09982742]
[1770763563937,10.875,82.804,82.772,27.09982742]
[1770763564931,10.8758,82.798,82.772,27.09982742]
[1770763565336,10.8758,82.798,82.762,27.08500914]
[1770763573042,3.73726498,82.79,82.742,27.10992077]
[1770763573243,3.73726498,82.78,82.742,27.10992077]
[1770763574741,10.8791,82.773,82.742,27.10992077]
[1770763575239,10.8835,82.739,82.691,10.8898]
[1770763575539,10.8835,82.739,82.652,36.27]
[1770763575540,3.73726498,82.71,82.63,3.73726498]
[1770763575942,3.73726498,82.74,82.673,10.8921]
[1770763576131,105.13992056,82.745,82.622,169.5384]
[1770763576132,8.71992056,82.744,82.67,3.73726498]
[1770763576442,98.28,82.755,82.69,3.73726498]
[1770763577137,3.73726498,82.76,82.691,18.75611053]
[1770763577340,10.8832,82.742,82.693,18.75611053]
[1770763578444,10.8814,82.756,82.704,18.75611053]
[1770763580143,10.8814,82.756,82.707,10.8876]
[1770763580349,10.8814,82.756,82.708,18.78447393]
[1770763588055,10.8824,82.748,82.708,18.78447393]
[1770763589454,10.8834,82.741,82.708,18.78447393]
[1770763590050,14.61936498,82.75,82.708,18.78447393]
[1770763590554,3.73726498,82.75,82.708,18.78447393]
[1770763590759,10.8831,82.743,82.708,18.78447393]
[1770763591851,3.73726498,82.75,82.708,18.78447393]
[1770763592055,3.73726498,82.76,82.708,18.78447393]
[1770763593763,10.8823,82.749,82.708,18.78447393]
[1770763596062,10.8831,82.742,82.708,18.78447393]
[1770763597463,10.8841,82.735,82.708,18.78447393]
[1770763603158,10.8849,82.729,82.708,18.78447393]
[1770763606462,3.73726498,82.73,82.682,18.88793982]
[1770763606665,3.73726498,82.72,82.661,18.88793982]
[1770763607358,10.8882,82.704,82.662,18.88986351]
[1770763610563,10.889,82.698,82.662,18.88986351]
[1770763611069,10.8897,82.692,82.662,18.88986351]
[1770763617467,10.8897,82.692,82.646,10.8957]
[1770763617671,10.8906,82.686,82.647,18.92748567]
[1770763618582,10.8906,82.686,82.649,18.92748567]
[1770763620382,21.7708,82.725,82.624,18.93319399]
[1770763620383,10.8921,82.674,82.624,18.93319399]
[1770763620575,3.74625065,82.67,82.624,18.93319399]
[1770763621273,10.8945,82.656,82.624,18.93319399]
[1770763622778,10.8955,82.648,82.624,17.54495123]
[1770763622979,10.8955,82.648,82.601,10.9017]
[1770763624880,10.8955,82.648,82.604,18.29952951]
[1770763625782,10.8945,82.656,82.606,18.29952951]
[1770763625977,3.74625065,82.66,82.606,18.29952951]
[1770763626375,10.8943,82.657,82.608,18.29952951]
[1770763626577,10.8943,82.657,82.611,18.29952951]
[1770763627773,10.8943,82.657,82.619,18.33189789]
[1770763628172,96.54,82.699,82.621,18.33189789]
[1770763628173,3.74625065,82.69,82.621,18.33189789]
[1770763628872,10.8905,82.687,82.64,18.32889488]
[1770763629483,10.8912,82.681,82.643,18.32889488]
[1770763632183,10.89,82.69,82.647,18.32008551]
[1770763633678,10.89,82.69,82.649,18.31839445]
[1770763633977,14.63625065,82.69,82.649,18.31839445]
[1770763634984,14.63763503,82.69,82.651,29.21158082]
[1770763635484,14.63763503,82.69,82.652,18.31658082]
[1770763635685,10.89,82.69,82.652,18.31658082]
[1770763636994,14.63763503,82.69,82.652,18.31658082]
[1770763637895,3.74763503,82.69,82.654,10.8947]
[1770763638197,10.8891,82.697,82.655,18.31968851]
[1770763638397,3.74763503,82.71,82.655,18.31968851]
[1770763638591,3.74763503,82.72,82.655,18.31968851]
[1770763638989,3.74763503,82.73,82.681,18.31072358]
[1770763639796,3.74763503,82.72,82.681,18.31072358]
[1770763640695,3.74763503,82.72,82.682,10.891]
[1770763640899,3.74763503,82.72,82.683,18.26897981]
[1770763641595,3.74763503,82.72,82.685,18.26897981]
[1770763641804,10.8856,82.724,82.685,18.26897981]
[1770763642799,10.8856,82.724,82.687,18.26460794]
[1770763643604,3.74763503,82.73,82.689,18.26460794]
[1770763644808,10.8851,82.728,82.689,18.26460794]
[1770763651306,10.8862,82.719,82.689,18.26460794]
[1770763651809,10.8862,82.719,82.679,10.8914]
[1770763651810,10.8862,82.719,82.68,18.19950725]
[1770763654513,10.8862,82.719,82.682,10.891]
[1770763656414,10.8879,82.706,82.668,10.8928]
[1770763656609,10.8879,82.706,82.669,18.20892614]
[1770763656819,3.74763503,82.73,82.669,18.20892614]
[1770763657815,10.887,82.713,82.672,10.8923]
[1770763658014,10.887,82.713,82.673,18.20346656]
[1770763660319,10.8877,82.708,82.673,18.20346656]
[1770763661013,10.8865,82.717,82.68,18.1981275]
[1770763663020,36.27,82.767,82.637,118.92854497]
[1770763663021,10.885,82.728,82.691,18.18790474]
[1770763663814,3.74763503,82.73,82.681,10.8911]
[1770763664724,10.885,82.728,82.69,29.06849428]
[1770763665814,10.8857,82.723,82.69,18.17869428]
[1770763666118,3.74763503,82.73,82.69,18.17869428]
[1770763666314,3.74763503,82.72,82.681,10.8911]
[1770763667624,10.8869,82.713,82.681,10.8911]
[1770763668018,10.8869,82.713,82.675,10.8918]
[1770763668218,10.8869,82.713,82.676,18.18012888]
[1770763669919,10.8869,82.713,82.655,21.789]
[1770763669920,10.8869,82.713,82.679,18.20895177]
[1770763670121,10.8869,82.713,82.678,10.8915]
[1770763670319,10.888,82.705,82.662,18.20895177]
[1770763671925,10.888,82.705,82.668,10.8928]
[1770763672123,10.888,82.705,82.668,29.10021798]
[1770763672720,10.888,82.705,82.668,10.8928]
[1770763672918,3.74763503,82.71,82.652,18.20609124]
[1770763673123,3.74763503,82.7,82.64,3.74763503]
[1770763673427,10.8925,82.671,82.635,18.20609124]
[1770763673625,10.8925,82.671,82.63,10.8977]
[1770763674326,10.8933,82.665,82.625,18.20609124]
[1770763675418,10.8941,82.659,82.625,18.20609124]
[1770763675624,3.74763503,82.66,82.608,18.14510901]
[1770763676921,10.8949,82.653,82.611,29.04688748]
[1770763677228,10.8949,82.653,82.612,18.14658748]
[1770763677414,10.8949,82.653,82.59,26.15618]
[1770763677415,10.8962,82.643,82.601,18.14658748]
[1770763677617,3.74763503,82.64,82.6,10.9017]
[1770763677813,3.74763503,82.64,82.601,18.14658748]
[1770763678024,10.8962,82.643,82.601,18.14658748]
[1770763678225,3.74763503,82.65,82.601,18.14658748]
[1770763679823,10.8956,82.647,82.601,18.14658748]
[1770763680021,3.74763503,82.65,82.601,18.14658748]
[1770763680222,10.8983,82.627,82.564,18.14751585]
[1770763680427,3.74763503,82.63,82.571,18.14751585]
[1770763681326,10.8995,82.618,82.574,18.11902904]
[1770763684024,10.8984,82.626,82.577,18.10626068]
[1770763684823,10.8972,82.636,82.58,18.41195343]
[1770763685034,10.8972,82.636,82.58,22.15958846]
[1770763685820,10.8972,82.636,82.588,18.41195343]
[1770763686422,10.8974,82.634,82.588,18.41195343]
[1770763687030,10.896,82.644,82.601,18.395407]
[1770763688525,10.895,82.652,82.602,18.395407]
[1770763689938,10.895,82.652,82.608,19.07689721]
[1770763690941,10.895,82.652,82.612,19.08649969]
[1770763697948,3.75028135,82.65,82.592,19.08857006]
[1770763698147,3.75028135,82.64,82.592,19.08857006]
[1770763699748,10.8969,82.638,82.595,19.11705624]
[1770763701652,10.8969,82.638,82.596,10.9023]
[1770763701850,10.8969,82.638,82.597,19.11477868]
[1770763702051,10.8977,82.631,82.597,19.11477868]
[1770763704258,10.8968,82.638,82.597,19.11477868]
[1770763705554,10.8971,82.636,82.597,19.11477868]
[1770763708158,3.75028135,82.64,82.597,19.11477868]
[1770763708159,10.8983,82.627,82.597,19.11477868]
[1770763708359,3.75028135,82.63,82.597,19.11477868]
[1770763708558,3.75028135,82.63,82.597,0.44487868]
[1770763708759,3.75028135,82.63,82.597,7.868e-05]
[1770763709862,10.8997,82.616,82.574,10.9052]
[1770763710760,10.8997,82.616,82.575,9.54267013]
[1770763711760,10.8997,82.616,82.578,10.9047]
[1770763711968,10.8997,82.616,82.579,9.54267013]
[1770763712263,3.75028135,82.63,82.579,9.54267013]
[1770763712463,3.75028135,82.63,82.57,3.75028135]
[1770763712464,3.75028135,82.63,82.582,9.54267013]
[1770763713767,10.8993,82.62,82.582,9.54267013]
[1770763716062,10.8999,82.615,82.582,9.54267013]
[1770763716266,3.75028135,82.63,82.582,9.54267013]
[1770763716668,10.9006,82.609,82.582,9.54267013]
[1770763721268,10.899,82.622,82.582,9.54267013]
[1770763721970,10.8997,82.616,82.582,9.54267013]
[1770763723168,10.8989,82.622,82.582,9.54267013]
[1770763724168,10.8998,82.616,82.582,9.54267013]
[1770763724370,3.75028135,82.62,82.582,9.54267013]
[1770763725680,3.75028135,82.63,82.582,9.54267013]
[1770763726670,10.8995,82.618,82.582,9.54267013]
[1770763732080,3.75028135,82.61,82.57,9.64150035]
[1770763732278,3.75434375,82.62,82.57,9.64150035]
[1770763732471,3.75434375,82.62,82.572,9.64150035]
[1770763732671,10.9003,82.612,82.572,9.64150035]
[1770763733274,10.9003,82.612,82.574,9.63761834]
[1770763738482,3.75434375,82.62,82.58,9.6178956]
[1770763738785,3.75434375,82.63,82.58,9.6178956]
[1770763739684,10.8994,82.619,82.581,10.9042]
[1770763739885,10.8994,82.619,82.582,9.61827623]
[1770763741284,10.8994,82.619,82.583,10.904]
[1770763741588,3.75434375,82.64,82.584,9.62110502]
[1770763741985,10.8962,82.643,82.603,9.62110502]
[1770763743890,10.8962,82.643,82.605,9.61237496]
[1770763746086,3.75434375,82.67,82.613,9.60721317]
[1770763747788,3.75434375,82.67,82.63,9.60078558]
[1770763747983,10.892,82.675,82.63,9.60078558]
[1770763748789,3.75434375,82.68,82.633,9.60396513]
[1770763749795,3.75434375,82.68,82.639,9.60396513]
[1770763753598,10.892,82.675,82.639,9.60396513]
[1770763754001,3.75434375,82.67,82.639,9.60396513]
[1770763754706,10.8929,82.668,82.639,9.60396513]
[1770763755996,3.75434375,82.67,82.639,9.60396513]
[1770763756905,10.892,82.675,82.639,9.60396513]
[1770763761200,3.7489265,82.68,82.639,9.60396513]
[1770763761402,10.8909,82.683,82.639,9.60396513]
[1770763762807,10.8909,82.683,82.641,9.6055131]
[1770763762999,3.7489265,82.69,82.641,9.6055131]
[1770763763200,3.7489265,82.68,82.641,9.6055131]
[1770763763602,3.7489265,82.68,82.649,10.8953]
[1770763765709,3.7489265,82.68,82.65,9.60527432]
[1770763768114,3.7489265,82.69,82.65,9.60527432]
[1770763769217,3.7489265,82.7,82.66,9.58857366]
[1770763769909,3.7489265,82.7,82.662,9.58857366]
[1770763771207,10.888,82.705,82.662,9.58857366]
[1770763771711,10.888,82.705,82.664,9.57792624]